[Event "WSTCC-50 2024"]
[Site "Krakow"]
[Date "2024.07.05"]
[Round "4.7"]
[White "Fomina, Tatyana"]
[Black "Jhunjhnuwala, Ramesh"]
[Result "1-0"]
[ECO "B20"]
[WhiteElo "2192"]
[BlackElo "2050"]
[Annotator "RC"]
[PlyCount "65"]
[EventDate "2024.07.01"]
[EventType "team-tourn"]
[EventCountry "POL"]
[SourceTitle "playchess.com"]
[Source "ChessBase"]
[SourceQuality "1"]
[TimeControl "40/5400+30:1800+30"]

1. e4 {[%emt 0:00:05]} c5 {[%emt 0:00:07]} 2. Ne2 {[%emt 0:00:09]} e6 {[%emt 0:01:07]} 3. Nbc3 {[%emt 0:00:40]} Nc6 {[%emt 0:01:57]} 4. g3 {[%emt 0:01:49]} Nf6 {[%emt 0:03:11]} 5. Bg2 {[%emt 0:03:46]} Qb6 {[%emt 0:05:34]} 6. O-O {[%emt 0:02:06]} Be7 {[%emt 0:01:52]} 7. b3 {[%emt 0:03:09]} d6 {[%emt 0:06:41]} 8. Bb2 {[%emt 0:01:36]} Bd7 {[%emt 0:00:40]} 9. Kh1 {[%emt 0:05:50]} h5 {[%emt 0:11:27]} 10. h3 {[%emt 0:03:13]} O-O-O {[%emt 0:01:08]} 11. a4 {[%emt 0:02:35]} a6 {[%emt 0:16:39]} 12. a5 {[%emt 0:05:58]} Nxa5 {[%emt 0:00:49]} 13. Na4 {[%emt 0:00:16]} Qc7 {[%emt 0:10:34]} 14. d4 {[%emt 0:02:18]} b5 {[%emt 0:04:50]} 15. Nac3 {[%emt 0:02:33]} Bc6 {[%emt 0:00:24]} 16. d5 {[%emt 0:05:39]} exd5 {[%emt 0:04:08]} 17. Nxd5 {[%emt 0:01:08]} Bxd5 {[%emt 0:01:02]} 18. exd5 {[%emt 0:00:11]} Qb6 {[%emt 0:00:47]} 19. Qd2 {[%emt 0:07:40]} Nb7 {[%emt 0:00:42]} 20. b4 {[%emt 0:00:37]} Ne8 {[%emt 0:01:41]} 21. Ra3 {[%emt 0:02:45]} cxb4 {[%emt 0:02:59]} 22. Qxb4 {[%emt 0:09:15]} Bf6 {[%emt 0:00:41]} 23. Bxf6 {[%emt 0:01:45]} Nxf6 {[%emt 0:00:15]} 24. Nd4 {[%emt 0:02:30]} a5 {[%emt 0:04:27]} 25. Qc3+ {[%emt 0:05:08]} Qc5 {[%emt 0:04:52]} 26. Nxb5 {[%emt 0:01:12]} Qxc3 {[%emt 0:01:00]} 27. Rxc3+ {[%emt 0:01:07]} Kb8 {[%emt 0:00:19]} 28. Nd4 {[%emt 0:00:45]} Ka8 {[%emt 0:07:57]} 29. Ra1 {[%emt 0:03:26]} Rd7 {[%emt 0:00:38]} 30. Nc6 {[%emt 0:01:12]} Rc8 31. Rca3 {[%emt 0:00:37]} Rcc7 {[%emt 0:02:42]} 32. Rb1 {[%emt 0:02:25]} g6 {[%emt 0:01:29]} 33. Rxa5+ {[%emt 0:00:27]} 1-0

[Event "WSTCC-50 2024"]
[Site "Krakow"]
[Date "2024.07.05"]
[Round "4.7"]
[White "Fleish, Felix"]
[Black "Regan, Natasha K"]
[Result "1-0"]
[ECO "C79"]
[WhiteElo "2161"]
[BlackElo "2015"]
[Annotator "RC"]
[PlyCount "69"]
[EventDate "2024.07.01"]
[EventType "team-tourn"]
[EventCountry "POL"]
[SourceTitle "playchess.com"]
[Source "ChessBase"]
[SourceQuality "1"]
[TimeControl "40/5400+30:1800+30"]

1. e4 {[%emt 0:00:03]} e5 {[%emt 0:00:07]} 2. Nf3 {[%emt 0:00:08]} Nc6 {[%emt 0:00:10]} 3. Bb5 {[%emt 0:00:12]} a6 {[%emt 0:00:15]} 4. Ba4 {[%emt 0:00:04]} Nf6 {[%emt 0:00:17]} 5. O-O {[%emt 0:00:14]} d6 {[%emt 0:00:25]} 6. Bxc6+ {[%emt 0:01:59]} bxc6 {[%emt 0:00:12]} 7. d4 {[%emt 0:00:05]} exd4 {[%emt 0:02:06]} 8. Nxd4 {[%emt 0:00:38]} c5 {[%emt 0:13:14]} 9. Nc6 {[%emt 0:05:35]} Qd7 {[%emt 0:00:36]} 10. Na5 {[%emt 0:00:06]} Be7 {[%emt 0:06:17]} 11. Nc3 {[%emt 0:03:05]} O-O {[%emt 0:05:22]} 12. Bf4 {[%emt 0:04:00]} Bd8 {[%emt 0:13:04]} 13. e5 {[%emt 0:15:27]} Qf5 {[%emt 0:12:43]} 14. exf6 {[%emt 0:03:40]} Qxf4 {[%emt 0:00:26]} 15. fxg7 {[%emt 0:00:02]} Kxg7 {[%emt 0:02:21]} 16. Re1 {[%emt 0:04:08]} Bg4 {[%emt 0:05:38]} 17. Qd3 {[%emt 0:19:10]} Bf5 {[%emt 0:06:35]} 18. Qe2 {[%emt 0:03:34]} Kh8 {[%emt 0:04:34]} 19. Nc6 {[%emt 0:07:50]} Rg8 {[%emt 0:05:19]} 20. Nd5 {[%emt 0:05:59]} Qg5 {[%emt 0:06:06]} 21. f4 {[%emt 0:00:19]} Qg7 {[%emt 0:01:55]} 22. Nce7 {[%emt 0:02:59]} Be6 {[%emt 0:08:42]} 23. Nxg8 {[%emt 0:04:43]} Bxd5 {[%emt 0:00:24]} 24. Qd2 {[%emt 0:00:16]} Be6 {[%emt 0:03:51]} 25. f5 {[%emt 0:02:32]} Bg5 {[%emt 0:00:07]} 26. Qf2 {[%emt 0:00:07]} Rxg8 {[%emt 0:01:59]} 27. fxe6 {[%emt 0:00:06]} fxe6 {[%emt 0:00:38]} 28. Rxe6 {[%emt 0:00:22]} Bh4 {[%emt 0:00:25]} 29. g3 {[%emt 0:01:46]} Qxb2 {[%emt 0:00:20]} 30. Rae1 {[%emt 0:00:28]} Qxa2 {[%emt 0:00:35]} 31. Re8 {[%emt 0:05:28]} Bg5 {[%emt 0:00:18]} 32. Qf5 {[%emt 0:00:56]} h6 {[%emt 0:00:37]} 33. Qg6 {[%emt 0:00:17]} Qd5 {[%emt 0:00:50]} 34. Rxg8+ {[%emt 0:00:10]} Qxg8 {[%emt 0:00:06]} 35. Re8 {[%emt 0:00:06]} 1-0

[Event "WSTCC-50 2024"]
[Site "Krakow"]
[Date "2024.07.05"]
[Round "4.8"]
[White "Thorhallsson, Throstur"]
[Black "Arkell, Keith C"]
[Result "1-0"]
[ECO "B13"]
[WhiteElo "2385"]
[BlackElo "2375"]
[Annotator "TA"]
[PlyCount "81"]
[EventDate "2024.07.01"]
[EventType "team-tourn"]
[EventCountry "POL"]
[SourceTitle "playchess.com"]
[Source "ChessBase"]
[SourceQuality "1"]
[TimeControl "40/5400+30:1800+30"]

{[%evp 11,81,14,8,7,4,0,27,0,7,8,20,15,30,32,37,52,48,31,68,72,66,57,54,58,78,44,38,40,36,35,35,39,64,64,53,52,50,60,48,42,43,0,131,142,230,251,315,302,285,317,328,166,172,175,181,171,211,108,293,154,314,304,483,326,625,625,747,706,962,960,29992,29993]} 1. e4 {[%emt 0:00:16]} c6 {[%emt 0:00:05]} 2. d4 {[%emt 0:00:23]} d5 {[%emt 0:00:05]} 3. exd5 {[%emt 0:00:48]} cxd5 {[%emt 0:00:05]} 4. Bd3 {[%emt 0:00:11]} Nc6 {[%emt 0:00:06]} 5. c3 {[%emt 0:00:11]} Nf6 {[%emt 0:00:14]} 6. h3 {[%emt 0:00:39]} g6 {[%emt 0:00:17]} 7. Nf3 {[%emt 0:00:15]} Bf5 {[%emt 0:00:07]} 8. Be2 {[%emt 0:00:18]} Bg7 {[%emt 0:01:36]} 9. O-O {[%emt 0:01:06] White has an edge.} O-O {[%emt 0:00:06]} 10. Re1 {[%emt 0:01:39]} Ne4 {[%emt 0:00:28]} 11. Bf1 {[%emt 0:02:28]} Qb6 {[%emt 0:06:01]} 12. Qb3 {[%emt 0:19:34]} Qxb3 {[%emt 0:00:16]} 13. axb3 {[%emt 0:00:05]} a5 {[%emt 0:00:42]} 14. Bf4 {[%emt 0:01:55]} f6 {[%emt 0:12:32]} 15. Na3 {[%emt 0:06:39]} g5 {[%emt 0:08:04]} 16. Bh2 {[%emt 0:04:02]} h5 {[%emt 0:04:03]} 17. Nb5 {[%emt 0:04:58]} e6 {[%emt 0:12:58]} 18. Bd3 {[%emt 0:09:49][%cal Bf1d3,Bd3f5,Bf5e6][%mdl 32]} Nxc3 {[%emt 0:17:07]} 19. Bxf5 {[%emt 0:03:51]} Nxb5 {[%emt 0:00:51]} 20. Bxe6+ {[%emt 0:00:15]} Kh8 {[%emt 0:00:06]} 21. Bxd5 {[%emt 0:00:49]} Nbxd4 {[%emt 0:00:53]} 22. Nxd4 {[%emt 0:02:05]} Nxd4 {[%emt 0:00:06]} 23. Re7 {[%emt 0:16:45]} (23. Bxb7 Ra7 24. Re7 Nxb3) 23... Rad8 $1 {[%emt 0:09:15]} 24. Bf7 {[%emt 0:03:20] A strong pair of Bishops.} (24. Rxa5 Nc6 25. Bc7 Nxe7 $19) 24... b5 {[%emt 0:11:46]} 25. Bxh5 {[%emt 0:05:50]} (25. b4 $5) 25... Nxb3 {[%emt 0:00:20]} 26. Rae1 {[%emt 0:00:14]} Nc5 {[%emt 0:06:05] Dodges Rb7} (26... Rd2 $11 {keeps the balance.}) 27. Bc7 $36 {[%emt 0:02:45][%csl LRa5,LRd8][%mdl 2048] Keeping Black busy. White is more active.} Rd2 {[%emt 0:02:19]} (27... Rd7 $16 {keeps fighting.}) 28. Bxa5 $18 {[%emt 0:00:26]} Rxb2 {[%emt 0:02:39]} 29. Rc7 {[%emt 0:01:45]} (29. Bc3 Rc2 $16) 29... Na6 {[%emt 0:00:28]} 30. Ra7 {[%emt 0:01:13]} Nb4 {[%emt 0:02:40]} 31. Bxb4 {[%emt 0:03:03]} (31. Bf3 $142) 31... Rxb4 {[%emt 0:00:02] [#]} 32. Ree7 $1 {[%emt 0:00:08]} Rg8 {[%emt 0:00:08]} 33. g3 {[%emt 0:04:11]} f5 {[%emt 0:02:04]} 34. Rab7 {[%emt 0:00:58]} (34. Bf7 $18 Bd4 35. Rad7) 34... f4 $2 {[%emt 0:00:32]} (34... Re4 $16 {was called for.}) 35. g4 {[%emt 0:00:41]} (35. Bf7 $18 Bf8 36. Re6 fxg3 37. Bxg8 (37. fxg3 Bc5+ 38. Kf1 Ra8 $11) 37... gxf2+ 38. Kxf2 Rf4+ 39. Kg3 Kxg8 40. Rg6+ (40. Rxb5 Kf7 $18) 40... Kh8 41. Rxg5 (41. Rxb5 Be7 $18)) 35... f3 $2 {[%emt 0:00:35] A mistake that costs the game.} (35... Rb1+ $16 36. Kh2 Rb2) 36. Bg6 {[%emt 0:00:40][%cal Oe7e5] [#] Re5! is the strong threat.} Rb2 {[%emt 0:01:24]} (36... Rc4 $142 37. Rxb5 Rgc8 38. Rxg5 Bf6 39. Rh7+ Kg8) 37. Be4 {[%emt 0:02:35][%cal Oe7e5] aiming for Re5!} Re2 $2 {[%emt 0:00:36]} (37... Rd2 38. Rxb5 Rd6 39. Rxg5 Rh6 40. Bxf3 (40. Bd5 Rxh3 41. Rf7 Re8 $18) 40... Bf6) 38. Rxb5 {[%emt 0:01:42]} Rd8 {[%emt 0:01:07]} 39. Rxg5 {[%emt 0:00:31]} Rd1+ {[%emt 0:00:39]} 40. Kh2 {[%emt 0:00:05] Threatening mate with Re8+.} Rxf2+ {[%emt 0:00:32]} 41. Kg3 {[%emt 0:30:05] Weighted Error Value: White=0.23 (precise) /Black=0.60.  Loses game:     	---       	Black=1      Mistake:       	White=3     	Black=5      Inaccurate:     	White=4     	Black=2      OK:         	White=11    	Black=6      Best:        	White=2     	Black=4      Strong:       	---       	Black=1} 1-0

[Event "WSTCC-50 2024"]
[Site "Krakow"]
[Date "2024.07.05"]
[Round "4.8"]
[White "Fink-Nunn, Petra"]
[Black "Bulkovstein, David"]
[Result "0-1"]
[ECO "C18"]
[WhiteElo "1947"]
[BlackElo "1842"]
[Annotator "NA RC"]
[PlyCount "70"]
[EventDate "2024.07.01"]
[EventType "team-tourn"]
[EventCountry "POL"]
[SourceTitle "playchess.com"]
[Source "ChessBase"]
[SourceQuality "1"]
[TimeControl "40/5400+30:1800+30"]

1. e4 {[%emt 0:00:03]} e6 {[%emt 0:00:04]} 2. d4 {[%emt 0:00:07]} d5 {[%emt 0:00:07]} 3. Nc3 {[%emt 0:00:10]} Bb4 {[%emt 0:00:14]} 4. e5 {[%emt 0:00:11]} c5 5. a3 {[%emt 0:00:09]} Bxc3+ {[%emt 0:00:12]} 6. bxc3 {[%emt 0:00:05]} Nc6 {[%emt 0:00:05]} 7. Qg4 {[%emt 0:01:55]} g6 {[%emt 0:00:14]} 8. h4 {[%emt 0:02:36]} Qa5 {[%emt 0:01:21]} 9. Bd2 {[%emt 0:04:37]} Qa4 {[%emt 0:01:04]} 10. Nf3 {[%emt 0:04:54]} h6 {[%emt 0:01:20]} 11. Bd3 {[%emt 0:29:24]} Nge7 {[%emt 0:02:27]} 12. Qf4 {[%emt 0:02:27]} c4 {[%emt 0:03:17]} 13. Qf6 {[%emt 0:02:41]} Rh7 {[%emt 0:01:01]} 14. Be2 {[%emt 0:01:39]} Ng8 {[%emt 0:20:10]} 15. Qf4 {[%emt 0:00:26]} Bd7 {[%emt 0:00:35]} 16. Ra2 {[%emt 0:05:02]} O-O-O {[%emt 0:02:14]} 17. O-O {[%emt 0:00:12]} Qa5 {[%emt 0:22:14]} 18. Rb1 {[%emt 0:02:33]} Nce7 {[%emt 0:03:08]} 19. Nh2 {[%emt 0:14:47]} Ba4 {[%emt 0:03:34]} 20. Ng4 {[%emt 0:00:37]} Qc7 {[%emt 0:02:17]} 21. Rb4 {[%emt 0:01:50]} Bc6 {[%emt 0:08:26]} 22. a4 {[%emt 0:01:35]} b6 {[%emt 0:01:04]} 23. Bc1 {[%emt 0:05:31]} Kb7 {[%emt 0:12:18]} 24. Ba3 {[%emt 0:04:07]} f5 {[%emt 0:03:04]} 25. Ne3 {[%emt 0:00:53]} g5 {[%emt 0:01:17]} 26. hxg5 {[%emt 0:01:29]} Ng6 {[%emt 0:00:30]} 27. Qf3 {[%emt 0:01:03]} hxg5 {[%emt 0:01:30]} 28. Nxf5 {[%emt 0:04:45]} exf5 {[%emt 0:02:24]} 29. Qxf5 {[%emt 0:00:01]} N8e7 {[%emt 0:00:28]} 30. Qxg5 {[%emt 0:00:52]} Rdh8 {[%emt 0:01:29]} 31. f4 {[%emt 0:00:15]} Rg8 {[%emt 0:01:23]} 32. Qf6 {[%emt 0:03:26]} Rf8 {[%emt 0:01:48]} 33. Qg5 {[%emt 0:00:29]} Nxf4 {[%emt 0:01:14]} 34. Bf3 {[%emt 0:00:11]} Nh3+ {[%emt 0:01:42]} 35. gxh3 {[%emt 0:00:21]} Rg8 {[%emt 0:00:18]} 0-1

[Event "WSTCC-50 2024"]
[Site "Krakow"]
[Date "2024.07.05"]
[Round "4.8"]
[White "Jhunjhnuwala, Suresh"]
[Black "Korge, Kersti"]
[Result "1-0"]
[ECO "B01"]
[WhiteElo "1888"]
[BlackElo "1859"]
[Annotator "NA RC"]
[PlyCount "101"]
[EventDate "2024.07.01"]
[EventType "team-tourn"]
[EventCountry "POL"]
[SourceTitle "playchess.com"]
[Source "ChessBase"]
[SourceQuality "1"]
[TimeControl "40/5400+30:1800+30"]

1. e4 {[%emt 0:00:10]} d5 {[%emt 0:00:05]} 2. exd5 {[%emt 0:00:12]} Qxd5 {[%emt 0:00:06]} 3. Nf3 {[%emt 0:01:18]} Bg4 {[%emt 0:01:55]} 4. Be2 {[%emt 0:00:48]} Nf6 {[%emt 0:00:31]} 5. Nc3 {[%emt 0:00:43]} Qd8 {[%emt 0:01:21]} 6. d4 {[%emt 0:00:58]} e6 {[%emt 0:00:44]} 7. h3 {[%emt 0:00:36]} Bh5 {[%emt 0:00:18]} 8. a3 {[%emt 0:00:45]} a6 {[%emt 0:02:03]} 9. O-O {[%emt 0:00:44]} Be7 {[%emt 0:00:42]} 10. Bf4 {[%emt 0:04:53]} O-O {[%emt 0:01:25]} 11. Ne5 {[%emt 0:14:19]} Bxe2 {[%emt 0:01:03]} 12. Nxe2 {[%emt 0:00:05]} c5 {[%emt 0:14:32]} 13. dxc5 {[%emt 0:02:30]} Bxc5 {[%emt 0:00:13]} 14. Qxd8 {[%emt 0:02:06]} Rxd8 {[%emt 0:00:07]} 15. Rfd1 {[%emt 0:01:03]} Nc6 {[%emt 0:00:20]} 16. Nxc6 {[%emt 0:01:34]} bxc6 {[%emt 0:00:08]} 17. Bg5 {[%emt 0:01:14]} Rxd1+ {[%emt 0:02:53]} 18. Rxd1 {[%emt 0:00:09]} Ne4 {[%emt 0:00:12]} 19. Be3 {[%emt 0:11:56]} Bxe3 {[%emt 0:00:59]} 20. fxe3 {[%emt 0:00:04]} Kf8 {[%emt 0:00:35]} 21. Rd7 {[%emt 0:07:37]} Ke8 {[%emt 0:01:27]} 22. Rc7 {[%emt 0:01:35]} c5 {[%emt 0:00:39]} 23. Nf4 {[%emt 0:00:42]} Rd8 {[%emt 0:00:50]} 24. Nd3 {[%emt 0:02:43]} Rd5 {[%emt 0:01:10]} 25. b3 {[%emt 0:03:00]} Rg5 {[%emt 0:06:06]} 26. Rc6 {[%emt 0:12:16]} a5 {[%emt 0:00:43]} 27. Ra6 {[%emt 0:00:41]} c4 {[%emt 0:07:18]} 28. bxc4 {[%emt 0:00:35]} Nd2 {[%emt 0:00:29]} 29. c5 {[%emt 0:12:28]} Nc4 {[%emt 0:00:42]} 30. Kf2 {[%emt 0:00:15]} Rf5+ {[%emt 0:01:32]} 31. Ke2 {[%emt 0:00:51]} Kd7 {[%emt 0:00:31]} 32. a4 {[%emt 0:04:58]} e5 {[%emt 0:02:32]} 33. e4 {[%emt 0:00:58]} Rg5 {[%emt 0:00:22]} 34. Kf2 {[%emt 0:06:44]} f5 35. c6+ {[%emt 0:02:41]} Kc7 {[%emt 0:08:10]} 36. Nc5 {[%emt 0:00:10]} Rg6 {[%emt 0:00:11]} 37. exf5 {[%emt 0:00:45]} Rxc6 {[%emt 0:00:32]} 38. Ne6+ {[%emt 0:00:44]} Kd7 {[%emt 0:00:26]} 39. Rxc6 {[%emt 0:00:58]} Kxc6 {[%emt 0:00:09]} 40. Nxg7 {[%emt 0:00:05]} Kd6 {[%emt 0:01:24]} 41. Ne6 {[%emt 0:03:41]} Nb6 {[%emt 0:01:22]} 42. Nd8 {[%emt 0:01:39]} Kc5 {[%emt 0:03:19]} 43. Ke3 {[%emt 0:03:42]} Kd5 {[%emt 0:00:41]} 44. f6 {[%emt 0:01:37]} Nd7 {[%emt 0:05:45]} 45. f7 {[%emt 0:00:21]} Nf8 {[%emt 0:00:11]} 46. g4 {[%emt 0:04:48]} Kc4 {[%emt 0:01:41]} 47. Nc6 {[%emt 0:02:27]} Kc3 {[%emt 0:00:21]} 48. Nxa5 {[%emt 0:01:34]} Kb4 {[%emt 0:00:17]} 49. Nc6+ {[%emt 0:00:15]} Kxa4 {[%emt 0:00:06]} 50. Nxe5 {[%emt 0:00:19]} Kb4 {[%emt 0:00:34]} 51. Kd4 {[%emt 0:00:21]} 1-0

[Event "WSTCC-50 2024"]
[Site "Krakow"]
[Date "2024.07.05"]
[Round "4.9"]
[White "Sokolin, Leonid"]
[Black "Belakovskaia, Anjelina"]
[Result "1/2-1/2"]
[ECO "B12"]
[WhiteElo "2454"]
[BlackElo "2171"]
[Annotator "TA"]
[PlyCount "40"]
[EventDate "2024.07.01"]
[EventType "team-tourn"]
[EventCountry "POL"]
[SourceTitle "playchess.com"]
[Source "ChessBase"]
[SourceQuality "1"]
[TimeControl "40/5400+30:1800+30"]

{[%evp 9,40,12,56,47,54,45,66,39,61,16,18,1,6,4,9,0,0,7,26,22,27,0,0,0,0,-12,0,4,35,27,35,20,24]} 1. e4 {[%emt 0:00:02]} c6 {[%emt 0:00:06]} 2. d4 {[%emt 0:00:05]} d5 {[%emt 0:00:08]} 3. e5 {[%emt 0:00:05]} Bf5 {[%emt 0:00:20]} 4. h4 {[%emt 0:00:09]} h6 {[%emt 0:01:56]} 5. g4 {[%emt 0:00:47][%cal Bg2g4,Bg4g5][%mdl 32]} Bc8 {[%emt 0:00:32][%cal Oc6c5]} 6. Nc3 {[%emt 0:00:25]} e6 {[%emt 0:05:51]} 7. Be3 {[%emt 0:00:13]} b6 {[%emt 0:05:05]} 8. Nf3 {[%emt 0:07:30] White is more active. White is slightly better.} Bb4 {[%emt 0:16:20]} 9. g5 {[%emt 0:08:06]} Ba6 {[%emt 0:06:22]} 10. Bxa6 {[%emt 0:05:26]} Bxc3+ $1 {[%emt 0:02:03]} 11. bxc3 {[%emt 0:00:03]} Nxa6 {[%emt 0:00:03]} 12. g6 {[%emt 0:19:52]} Ne7 {[%emt 0:12:00]} 13. gxf7+ {[%emt 0:00:12]} Kxf7 {[%emt 0:00:02]} (13... Kd7 {with more complications.} 14. h5 Nf5 15. Qd3 Nc7) 14. h5 {[%emt 0:01:16]} Nf5 {[%emt 0:00:29] Repels Nh4} 15. Qd3 {[%emt 0:00:53]} Nc7 {[%emt 0:00:11]} 16. Kd2 {[%emt 0:00:56]} Ke8 {[%emt 0:15:19]} 17. Rag1 {[%emt 0:04:41][%cal Og1g7]} Kd7 {[%emt 0:00:12]} 18. Rg4 {[%emt 0:02:54]} Qe7 {[%emt 0:01:53]} 19. Nh4 {[%emt 0:06:34]} Nxh4 {[%emt 0:00:04]} 20. Rhxh4 {[%emt 0:00:04]} Rhf8 {[%emt 0:01:08] Weighted Error Value: White=0.10 (very precise) /Black=0.07 (flawless) .  Inaccurate:     	White=3     	Black=1      OK:         	White=6     	Black=7      Strong:       	---       	Black=1} 1/2-1/2

[Event "WSTCC-50 2024"]
[Site "Krakow"]
[Date "2024.07.05"]
[Round "4.9"]
[White "Plotkin, Victor"]
[Black "Zeidler, Sven P."]
[Result "1-0"]
[ECO "B00"]
[WhiteElo "2264"]
[BlackElo "2116"]
[Annotator "TA"]
[PlyCount "77"]
[EventDate "2024.07.01"]
[EventType "team-tourn"]
[EventCountry "POL"]
[SourceTitle "playchess.com"]
[Source "ChessBase"]
[SourceQuality "1"]
[TimeControl "40/5400+30:1800+30"]

{[%evp 12,77,29,16,16,25,25,28,28,25,49,37,51,27,33,17,52,62,52,27,24,38,33,8,35,-6,41,12,73,14,10,-21,14,18,12,-56,-54,-68,-76,-72,101,101,106,120,117,9,27,0,0,11,175,189,185,184,188,189,204,207,252,254,1151,493,29989,29990,29994,29990,29993,29993]} 1. e4 {[%emt 0:00:02]} Nc6 {[%emt 0:00:05]} 2. Nf3 {[%emt 0:00:38]} d6 {[%emt 0:00:16]} 3. d4 {[%emt 0:00:43]} Nf6 {[%emt 0:00:06]} 4. Nc3 {[%emt 0:00:56]} g6 {[%emt 0:00:05]} 5. g3 {[%emt 0:05:19]} Bg7 {[%emt 0:09:43]} 6. Bg2 {[%emt 0:00:18]} O-O {[%emt 0:00:36]} 7. O-O {[%emt 0:00:36]} Bg4 {[%emt 0:10:09]} 8. h3 {[%emt 0:06:49]} Bxf3 {[%emt 0:00:08]} 9. Bxf3 {[%emt 0:00:15]} e5 {[%emt 0:01:58] Weiß hat minimalen Vorteil.} 10. d5 {[%emt 0:03:40]} Ne7 {[%emt 0:06:59]} 11. Bg2 {[%emt 0:03:18]} Ne8 {[%emt 0:09:21]} 12. Qd3 {[%emt 0:09:20]} f5 {[%emt 0:03:46]} 13. f4 {[%emt 0:02:33]} Nf6 {[%emt 0:07:57]} 14. fxe5 {[%emt 0:06:32]} dxe5 {[%emt 0:01:30]} 15. exf5 {[%emt 0:05:44]} gxf5 {[%emt 0:01:19]} 16. Bg5 {[%emt 0:01:06]} h6 {[%emt 0:04:17]} 17. Bh4 {[%emt 0:01:48]} (17. Qc4 $5 Kh8 18. Be3 $14) 17... Qd6 {[%emt 0:02:39]} (17... e4 {sieht schärfer aus.} 18. Qc4 Kh8 19. g4 fxg4 20. hxg4 Nexd5 21. g5 hxg5 22. Bxg5 Qd7) 18. Kh1 {[%emt 0:03:26] Aktives Gegenspiel!} a6 {[%emt 0:01:12]} (18... e4 $11 {war vorzuziehen.} 19. Qc4 Kh8) 19. Rad1 {[%emt 0:02:15][%cal Og3g4]} (19. g4 {hält die Spannung aufrecht.} e4 20. Qc4 b5 21. Qb3) 19... Rf7 {[%emt 0:05:11]} (19... e4 $11 {bleibt in der Remisbreite.} 20. Qe3 Rae8 (20... Nexd5 $2 21. Nxd5 Nxd5 22. Qb3 $18)) 20. Qe2 {[%emt 0:04:37]} ({Besser ist} 20. g4 $1 $16) 20... Raf8 $11 {[%emt 0:06:02]} 21. a3 {[%emt 0:07:49]} Nd7 {[%emt 0:04:55]} 22. Bxe7 {[%emt 0:03:50]} Rxe7 {[%emt 0:02:07]} 23. g4 {[%emt 0:01:02]} (23. Qh5 $1 $11) 23... e4 $15 {[%emt 0:07:49]} 24. gxf5 {[%emt 0:01:47]} Bxc3 {[%emt 0:00:07]} 25. bxc3 {[%emt 0:00:21]} Qxa3 $2 {[%emt 0:02:01]} (25... Nf6 $17 {hält den Druck.}) 26. d6 $1 $16 {[%emt 0:01:43]} (26. Bxe4 $6 Qxc3 27. Qh5 Rf6 $11 (27... Rxe4 $2 28. Rg1+ $18)) 26... cxd6 {[%emt 0:00:35][%cal Od7f6]} 27. Bxe4 {[%emt 0:01:23] Und jetzt Bd5+ wäre schön.} Nf6 {[%emt 0:00:49] [#]} 28. Qc4+ {[%emt 0:07:32]} (28. Rg1+ $1 $16 Kh7 29. Qg2) 28... Kh8 {[%emt 0:00:12]} 29. Bf3 {[%emt 0:00:52]} Qc5 {[%emt 0:01:23]} 30. Qf4 {[%emt 0:01:47][%csl LRd6,LRh6]} Qe5 $2 {[%emt 0:00:42] Danach kann Schwarz die Partie nicht mehr halten.} (30... d5 $11 {und Schwarz steht sicher.}) 31. Qxh6+ $18 {[%emt 0:00:41]} Nh7 {[%emt 0:00:40]} 32. Rxd6 {[%emt 0:01:52]} Rxf5 {[%emt 0:01:58][%cal Of5f8] [#]} 33. Rg1 $1 {[%emt 0:09:30]} Rf8 {[%emt 0:00:15] [#] Verhindert Rd8.} ({Schlechter ist} 33... Rxf3 34. Rd8+ Re8 35. Rxe8+ Qxe8 36. Qg7#) 34. Rdg6 $1 {[%emt 0:03:01][%cal Bd6g6,Bg6g3,Bg3g7][%mdl 32]} Qf5 {[%emt 0:03:47]} (34... Ref7 35. Re6) 35. R6g3 $40 {[%emt 0:01:12][%mdl 128] Droht stark c4. Weiss hat starken Angriff.} Qf6 $2 {[%emt 0:01:48]} (35... b5 36. Qxa6 Nf6) 36. Bd5 {[%emt 0:00:51]} (36. Qh5 $142) 36... Ree8 {[%emt 0:01:28] Schwarz ist schwach auf den weissen Feldern} (36... Re1 $18 37. Qxf6+ Nxf6 38. Rxe1 Nxd5) 37. Qh5 {[%emt 0:01:20] Weiß setzt Matt.} Qd8 {[%emt 0:01:25]} 38. c4 {[%emt 0:00:49]} Qb6 {[%emt 0:02:12]} 39. Rg7 {[%emt 0:00:42] Gewichteter Fehlerwert: Weiß=0.26 (präzise) /Schwarz=0.42.  Verlustzug:     	---       	Schwarz=1     Fehler:       	Weiß=4     	Schwarz=5     Ungenau:       	Weiß=4     	Schwarz=3     OK:         	Weiß=8     	Schwarz=11    Bester:       	Weiß=2     	Schwarz=2     Stark:        	Weiß=2     	---} 1-0

[Event "WSTCC-50 2024"]
[Site "Krakow"]
[Date "2024.07.05"]
[Round "4.9"]
[White "Csonkics, Tunde"]
[Black "Delaney, John"]
[Result "1/2-1/2"]
[ECO "A04"]
[WhiteElo "1995"]
[BlackElo "2167"]
[Annotator "RC"]
[PlyCount "65"]
[EventDate "2024.07.01"]
[EventType "team-tourn"]
[EventCountry "POL"]
[SourceTitle "playchess.com"]
[Source "ChessBase"]
[SourceQuality "1"]
[TimeControl "40/5400+30:1800+30"]

1. Nf3 {[%emt 0:00:01]} e6 {[%emt 0:00:46]} 2. g3 {[%emt 0:00:06]} f5 {[%emt 0:00:24]} 3. Bg2 {[%emt 0:00:04]} Nf6 {[%emt 0:00:16]} 4. c4 {[%emt 0:00:40]} d5 {[%emt 0:00:34]} 5. O-O {[%emt 0:00:18]} c6 {[%emt 0:04:22]} 6. d3 {[%emt 0:00:52]} Bd6 {[%emt 0:11:29]} 7. Nc3 {[%emt 0:01:27]} O-O {[%emt 0:03:31]} 8. e4 {[%emt 0:01:57]} Bc7 {[%emt 0:08:04]} 9. exf5 {[%emt 0:13:44]} dxc4 {[%emt 0:02:47]} 10. dxc4 {[%emt 0:08:24]} Qxd1 {[%emt 0:00:20]} 11. Rxd1 {[%emt 0:00:41]} exf5 {[%emt 0:01:30]} 12. Re1 {[%emt 0:10:44]} Nbd7 {[%emt 0:08:29]} 13. b3 {[%emt 0:01:50]} Ba5 {[%emt 0:09:54]} 14. Bd2 {[%emt 0:03:02]} Nc5 {[%emt 0:02:23]} 15. Nd5 {[%emt 0:04:33]} Bxd2 {[%emt 0:07:00]} 16. Nxf6+ {[%emt 0:01:28]} Rxf6 {[%emt 0:01:01]} 17. Nxd2 {[%emt 0:00:09]} Bd7 {[%emt 0:04:30]} 18. Nf3 {[%emt 0:02:40]} f4 {[%emt 0:09:15]} 19. Ne5 {[%emt 0:06:26]} fxg3 {[%emt 0:03:41]} 20. hxg3 {[%emt 0:02:42]} Bf5 {[%emt 0:03:28]} 21. b4 {[%emt 0:10:31]} Nd3 {[%emt 0:01:49]} 22. Nxd3 {[%emt 0:01:06]} Bxd3 {[%emt 0:00:08]} 23. Rac1 {[%emt 0:04:56]} Bf5 {[%emt 0:04:17]} 24. Re7 {[%emt 0:01:54]} Rf7 {[%emt 0:00:42]} 25. Rce1 {[%emt 0:01:12]} a6 {[%emt 0:05:16]} 26. b5 {[%emt 0:04:40]} axb5 {[%emt 0:02:09]} 27. cxb5 {[%emt 0:00:09]} Rxa2 {[%emt 0:03:17]} 28. Re8+ {[%emt 0:04:18]} Rf8 {[%emt 0:00:07]} 29. bxc6 {[%emt 0:00:09]} bxc6 {[%emt 0:00:41]} 30. Bxc6 {[%emt 0:00:09]} Ra5 {[%emt 0:00:17]} 31. R8e5 {[%emt 0:05:09]} Rxe5 {[%emt 0:00:19]} 32. Rxe5 {[%emt 0:00:07]} Bg6 {[%emt 0:00:14]} 33. Bd5+ {[%emt 0:00:35]} 1/2-1/2